{"text_format":"1","workbook":"xlsx","n_sheets":49,"sheets":["How to use","Framsida FI","Framsida DK","Framsida SE","Framsida NO","Documents","Summary","PG-def.","R1","R2","R3","R4","R5","R6","R7","R8","R9","R10","R11","R12","R13","R14","R15","R16","R17","R18","R19","R20","R21","R22","R23","R24","R25","R26","R27","R28","R29","R30","R31","R32","R33","R34","R35","R36","R37","R38","R39","R40","R41"],"not_rendered":{"charts":0,"images":74,"macros":1,"external_links":0,"defined_names":0,"comments":0,"pivot_tables":0},"unopened":[],"bounds":{"document_bytes":16777216,"sheet_cells":100000,"rows_first":2000,"rows_last":500,"rows_between":2000,"halvings":0,"cell_chars":16384,"cell_head_chars":4096},"cells_cut":0,"cells_raw":0,"read":"whole","date_system":"1900"}

{"sheet":"How to use","index":0,"n_rows":26,"n_cols":1,"rows_kept":26,"cut":false,"hidden":false,"merged":[]}
["Applicant"]
["Open each tap fill in all cells that are white:"]
[]
["Select a status from the drop down list and write in the cell for comments from the applicant"]
[]
[]
[]
[]
[]
[]
[]
[]
[]
[]
[]
["Also write the name of the documents relevant for each requirement"]
[]
[]
[]
[]
[]
[]
[]
[]
[]
["Nordic Ecolabel"]

{"sheet":"Framsida FI","index":1,"n_rows":20,"n_cols":7,"rows_kept":20,"cut":false,"hidden":true,"merged":[[19,1,19,6]]}
["Tarkastuslista"]
["Tuoteryhmä:"]
["Kriteeriversio ja sen voimassaoloaika (X.X • pp kk 20XX – pp kk 20XX)"]
[]
["Yritys (hakija)"]
["Yhteyshenkilön nimi, puhelinnumero ja sähköposti"]
["Valmistaja (nimi ja osoite)"]
["Lupanumero"]
["Hakemus saapunut (päivämäärä)"]
["Hakemuksen tyyppi"]
["Tuotteet (tuotteiden koot)","Tuotenimet","Tuotenimet FI","Tuotenimet SV","Tuotenimet NO","Tuotenimet DK","Tuotenimet IS"]
[]
["Hakemusmaksu maksettu (päivämäärä)"]
["Tarkastuskäynti (päivämäärä)"]
["Ärendenummer i OMNIS"]
["Datum godkänd:"]
["Handläggare: "]
["Kontrollör: "]
["Slutkontrollör: "]
["Yleiset kommentit:"]

{"sheet":"Framsida DK","index":2,"n_rows":182,"n_cols":5,"rows_kept":182,"cut":false,"hidden":true,"merged":[[0,0,1,0],[0,1,1,1],[0,2,1,2],[0,3,1,3],[23,4,25,4],[26,0,27,0],[26,1,27,1],[26,2,27,2],[26,3,27,3],[26,4,27,4],[15,0,18,0],[15,1,18,2],[15,3,18,3],[20,0,22,0],[20,1,22,1],[20,2,22,2],[20,3,22,3],[29,0,30,0],[29,1,30,1],[29,2,30,2],[29,3,30,3],[36,0,37,0],[36,1,37,1],[36,2,37,2],[36,3,37,3],[23,1,25,1],[23,2,25,2],[23,3,25,3],[43,0,44,0],[43,1,44,1],[43,2,44,2],[43,3,44,3],[45,1,49,1],[45,2,49,2],[45,3,49,3],[38,0,39,0],[38,1,39,1],[38,2,39,2],[38,3,39,3],[41,1,42,1],[41,2,42,2],[41,3,42,3],[56,1,57,1],[56,2,57,2],[56,3,57,3],[58,0,59,0],[58,1,59,1],[58,2,59,2],[58,3,59,3],[50,1,53,1],[50,2,53,2],[50,3,53,3],[54,1,55,1],[54,2,55,2],[54,3,55,3],[66,0,67,0],[66,1,67,1],[66,2,67,2],[66,3,67,3],[68,0,69,0],[68,1,69,1],[68,2,69,2],[68,3,69,3],[60,1,63,1],[60,2,63,2],[60,3,63,3],[64,0,65,0],[64,1,65,1],[64,2,65,2],[64,3,65,3],[79,0,82,0],[79,1,82,1],[79,2,82,2],[79,3,82,3],[83,0,92,0],[83,1,92,1],[83,2,92,2],[83,3,92,3],[70,0,71,0],[70,1,71,1],[70,2,71,2],[70,3,71,3],[73,0,78,0],[73,1,78,1],[73,2,78,2],[73,3,78,3],[106,0,109,0],[106,1,109,1],[106,2,109,2],[106,3,109,3],[93,0,94,0],[93,1,94,1],[93,2,94,2],[93,3,94,3],[95,0,96,0],[95,1,96,1],[95,2,96,2],[95,3,96,3],[110,1,111,1],[110,2,111,2],[110,3,111,3],[112,1,117,1],[112,2,117,2],[112,3,117,3],[103,1,104,1],[103,2,104,2],[103,3,104,3],[135,1,139,1],[135,2,139,2],[135,3,139,3],[141,1,142,1],[141,2,142,2],[141,3,142,3],[120,1,121,1],[120,2,121,2],[120,3,121,3],[126,1,129,1],[126,2,129,2],[126,3,129,3],[168,3,171,3],[172,0,173,0],[172,1,173,1],[172,2,173,2],[172,3,173,3],[144,0,157,0],[144,1,157,1],[144,2,157,2],[144,3,157,3],[158,1,167,1],[158,2,167,2],[158,3,167,3],[181,0,181,1],[182,0,185,1],[182,2,185,2],[176,1,176,2],[177,1,177,2],[178,1,178,2],[179,0,179,1],[180,0,180,1],[168,1,171,1],[168,2,171,2]]}
["Overskrift","Udfyldes ved op­rettelse af adm.","Udfyldes ved be­hand­l­ing af ansøgning","Udfyldes ved faglig kontrol","Beskrivelser "]
[null,null,null,null,"og hjælpetekster "]
["Initialer:",null,null,null,"Alle: Skriv initialer ved start på sag!"]
["Handelsnavn",null,null,null,"Skriv og tjek, at handelsnavne i ansøgn. stemmer med det ansøgte (etiketter for Kemtek)."]
[]
["og",null,null,null,"Link til etiketter indsættes."]
[null,null,null,null,"Hvis handelsnavne udgår indsættes link til mail, hvor det står."]
["produkttype ",null,null,null,"Kun én produkttype pr. handelsnavn."]
[null,null,null,null,"Angiv land i parentes efter handelsnavn, hvis andet end DK."]
["Link: \\\\dsfile\\dsmappe\\Miljø - Sekretariat\\ESM\\Sager\\Sagsbehand\\A Produkttypestruktur"]
[null,null,null,null,"Tjek, at handelsnavne stemmer med etiketter."]
[]
[null,null,null,null,"Hvis der ikke er FK, skal handels­navne tjekkes i SK."]
[]
[null,null,null,null,"Husk: Handelsnavn på etiket ”overruler” handelsnavn i ansøgningsskema. Afklar evt. med sagsbehandler og tjek i Axapta for kunde!"]
["Bemærkning til sagsbehandler vedr. sagen/kunden",null,null,null,"Ny licens, fornyelse, udvidelse, hvad omfatter den…"]
[null,null,null,null,"Skriv bemærkning og highlight evt. "]
[null,null,null,null,"Ellers IR."]
[]
["Trykkeri: Opret i MSA",null,null,null,"Se beskrivelse for oprettelse af ansøgning: her, se under ”Modtagelse af ansøgninger”"]
["Licens nr.",null,null,null,"Hvis ny licens: 5xx-yyy."]
[null,null,null,null,"Hvis ny licens: Link til mail med licens nr."]
[null,null,null,null,"Ny licens: Tjek mail med licens nr."]
["Projekt nr. og oprettelse i Ax",null,null,null,"Underprojekt nr. i Axapta"]
[]
["Skriveregler for navngivning i Ax: her"]
["Kort beskrivelse af ansøgning",null,null,null,"Indhold, der beskriver ansøgning."]
[]
["Ansøger firmanavn ",null,null,null,"Tjek at det stemmer med Axapta"]
["Ansøgers kontaktperson",null,null,null,"Lægges på underprojeket."]
[null,null,null,null,"Personen sagsbehandler har korresponderet med."]
[]
[]
["Ansøger som producent/importør"]
["Ansøgningsdato ",null,null,null,"Lyserød betyder dato i Axapta."]
["Årlig omsætning af de ansøgte produkter ",null,null,null,"Se ans.skema."]
["Underskrevet ansøgningsskema",null,null,null,"Ja/nej"]
[null,null,null,null,"Indsæt link til ansøgningsskema"]
["Økonomisk udestående: ",null,null,null,"Forfaldne fakturaer el. årsopgørelse modtaget? Ja/nej"]
[]
["Ny/fornyelse",null,null,null,"Ansøgningsgebyr betalt? Ja/nej"]
["Ansøgning ikke modtaget via application@ecolabel.dk",null,null,null,"Bekræftelse fremsendes inden en uge/7 dage."]
["Internt mål"]
["KEMTEK team"]
[]
["Sag oprettet i Sagsstyring + ",null,null,null,"Deadline"]
["konsulent tildelt inden 2 uger efter modtagelse af ansøgning ",null,null,null,"Trykkerier: I Sagsstyring skrives trykkeriets bynavn først på Emne-linjen. "]
["Internt mål "]
[null,null,null,null,"Dato for mail til kunde + link"]
[null,null,null,null,"Tjek dato"]
[]
["1. statusmail med fagligt indhold sendt inden 3 uger (21 dage) efter modtagelse af ansøgning Internt mål ",null,null,null,"Deadline"]
[null,null,null,null,"Dato for 1. statusmail til kunde + link"]
[null,null,null,null,"Tjek dato"]
[null,null,null,null,"Dato for mail sendt til kunde om alt er modtaget + link"]
["Licens tildelt inden 3 uger (21 dage) efter ”Alt modtaget”-mail sendt Kvalitetsmål",null,null,null,"Tjek dato for afsendelse af mail"]
[null,null,null,null,"Deadline"]
["Ansøgning afsluttet inden 6 (182 dage) måneder efter modtagelse af ansøgning Kvalitetsmål"]
["BASE team"]
[]
["Sag oprettet i Sagsstyring +",null,null,null,"Deadline"]
["1. statusmail med fagligt indhold sendt inden 2 uger (14 dage) efter modtagelse af ansøgning Internt mål ",null,null,null,"Dato for 1. statusmail til kunde + link"]
[null,null,null,null,"Tjek dato"]
[]
["Licens tildelt inden 3 uger (21 dage) efter ”Alt modtaget”-mail sendt Kvalitetsmål",null,null,null,"Dato for mail sendt til kunde om alt er modtaget + link"]
[null,null,null,null,"Tjek dato for afsendelse af mail"]
["Ansøgning afsluttet inden 6 (182 dage) måneder efter modtagelse af ansøgning Kvalitetsmål",null,null,null,"Deadline"]
[]
["Korrekt tjekliste iht. kriterieversion",null,null,null,"Skriv hvilken kriterieversion, der ansøges på (eks. 1, 2, 3…)."]
[null,null,null,null,"Tjek!"]
["Salg/registrering i andre Nordiske lande, angiv evt. lande",null,null,null,"Husk altid at spørge om der er salg i andre nordiske lande, uanset afkrydsning i ansøgningsskema!"]
[null,null,null,null,"Tjek!"]
["Private el. prof. kunder",null,null,null,"Opdateres normalt ved første licens!"]
["Produktionssted(er)",null,null,null,"Angiv hvis forskellig fra producent. "]
[]
[null,null,null,null,"OBS! Hvis trykpapir og tissue, kan der kun være et produktionssted pr. licens iht. Nordiske regler!"]
[]
[null,null,null,null,"Udkast til bilag laves med angivelse af handelsnavne pr. produktionssted (navn og adresse)."]
[null,null,null,null,"Tjek bilag!"]
["Produktionsspecifikationer",null,null,null,"Gælder papirprodukter, hygiejneprodukter, tekstiler, møbler og brændeovne."]
[]
[null,null,null,null,"Udkast til bilag laves."]
[null,null,null,null,"Tjek bilag!"]
["Kontrolbesøg(KB) ",null,null,null,"Ny licens: KB skal så vidt muligt afholdes før licens tildeles. "]
[null,null,null,null,"OBS! aftales med KC hvis licens tildeles før KB."]
[null,null,null,null,"Fornyelse: KB kan evt. afholdes efter licens er tildelt. "]
[null,null,null,null,"OBS! SB til licens."]
[null,null,null,null,"Udvidelse: KB hvis nyt produktionssted el. store ændringer."]
[null,null,null,null,"OBS! Afklares med KC. "]
[null,null,null,null,"Ellers IR."]
[]
[null,null,null,null,"Dato + link til referat."]
[null,null,null,null,"Tjek!"]
["Særlige bemærkninger (SB)",null,null,null,"OBS! Formulering af SB angives og skal godkendes af KC før ansøgning sendes til SK."]
[null,null,null,null,"Tjek, at det stemmer med tjeklisten."]
["Antal timer til sagsbehandling i indeværende uge",null,null,null,"Skriv antal timer brugt uge xx (den uge sagen sendes til SK)."]
[null,null,null,null,"Skriv antal timer brugt uge xx (den uge sagen sendes til SK)."]
["Godkendt af konsulent",null,null,null,"Dato og initialer"]
["Godkendt af faglig kontrol ",null,null,null,"Dato og initialer"]
["Evt. kommentarer"]
[null,"Udfyldes ved slutkontrol "]
["Initialer",null,null,null,"Skriv initialer ved start på sag!"]
["Alt OK efter dokumentgennemgang + faglig kontrol? ",null,null,null,"Tjek, at der står OK ud for alle krav/punkter i tjekliste/notat for sagsbehandler og for FK!"]
["Sagsstyring opdateres med:"]
["- slutdato",null,null,null,"Hvis ny SB: oprettes sag i Axapta og SB-tjeklistehoved. "]
["- Hvis ny SB: opret sag i Sagsstyring "]
["Kunderum/LS opdateres",null,null,null,"Status på sagen ændres til ”Afsluttet”. Dette gøres 2 steder:"]
[null,null,null,null,"-  Ansøgninger"]
[null,null,null,null,"-  Checklister"]
[null,null,null,null,"Stå i sagen, klik på ”Edit proporties” og vælg ”afsluttet”"]
["Axapta-underprojekt opdateres: "]
["- Projektleder ",null,null,null,"Projektleder=ansvarlig licenskonsulent"]
["- svardatoer",null,null,null,"Bekræftet=Ansøgningsdato"]
[null,null,null,null,"Svar=1. status m. indhold …"]
["Vejledning til svartider i Ax: her.",null,null,null,"Dokumentation komplet=Alt modtaget"]
[null,null,null,null,"Slutkontrol=dato for SK"]
["OBS! Trykkerier!"]
[null,null,null,null,"Trykkrier OBS!: Husk at datoen for klargøring af sagen (submittet første gang i MSA)=Bekræftet=Ansøgningsdato"]
["- kontaktperson ",null,null,null,"Kontaktperson=den som konsulenten har haft kontakt med "]
["Hvis udvidelse: Axapta-underprojekt faktura oprettes",null,null,null,"Tjek antal brugte timer i Ax og for sagsbehandler og FK i indeværende uge, se ovenfor!"]
["Axapta-hovedprojekt opdateres:"]
["- Hvis ny licens: licens nr.",null,null,null,"Løbe nr. skrives i Ax. + opdater ”Navne” med licens nr. i ”Generel”"]
["- Hvis ny licens: startdato"]
["- kontaktperson + emailadresse",null,null,null,"Opdatér hvis ny (spørg evt. adm.)."]
["- versionsnummer for licens"]
["- kriterieversion",null,null,null,"Opdatér med nyeste version inden for samme hovedversion."]
["- nye handelsnavne, hovedversion, vis på web, NAG:lande (flueben), og produkttyper",null,null,null,"Kun én emballage­størrelse. pr. linje Hvis kun salg uden for Norden, sættes flueben i DK."]
[]
["NAG-oversigt: her",null,null,null,"Trykkerier - OBS! "]
[null,null,null,null,"Se beskrivelse af handelsnavne: her, se under ” Slutkontrol”."]
[" - Udgåede handelsnavne",null,null,null,"Slet linjer med udgåede handelsnavne."]
["- omsætning",null,null,null,"Hvis der står ”Årsaconto”, Skrives omsætning for næste år + dato i ”Meddelelse”"]
["- forbruger/prof ",null,null,null,"Sæt flueben"]
["- manuelle bilag",null,null,null,"Sæt flueben"]
["- seneste aktivitet",null,null,null,"Dags dato"]
["Axapta-hovedprojekt udskriv til PDF og gem på sag/O-drev:",null,null,null,"- vælg NAG, alm. el. reg.bevvis."]
["- licensbevis ",null,null,null,"- vælg producent/forhandler ved udskrivning."]
[null,null,null,null,"- Navngivning af licensbevis:"]
[null,null,null,null,"År-måned-dag_licensnr_Vnr"]
[null,null,null,null,"f.eks. 20130611_590987_V1"]
["- Hvis ny licens: faktura for forventet omsætning"]
["Manuelle bilag laves evt.:",null,null,null,"Se ovenfor under sagsbehandling!"]
["- særlig bemærkning"]
["- produktionssteder"]
["- produktionsspecifikationer",null,null,null,"Hvis der haves gældende manuelle bilag fra tidligere opdateres disse (flueben i Ax). "]
[]
[null,null,null,null,"Nummerering af bilag:"]
[null,null,null,null,"1 Handelsnavne"]
[null,null,null,null,"2 Produktionssteder/-spec."]
[null,null,null,null,"3 Særlig bemærkning"]
[]
[null,null,null,null,"Link til standardbilag og forslag til tekst: \\\\dsfile\\dsmappe\\Miljø - Sekretariat\\ESM\\Standard bilag"]
[]
[null,null,null,null,"Tekster til licensbevis hvis bilag haves:"]
[null,null,null,null,"Produktionssted:"]
[null,null,null,null,"”Se bilag 2, dateret den x. måned 2013”"]
[null,null,null,null,"Produkttekst (SB +prod. specifikationer):"]
[null,null,null,null,"”For specifikationer se bilag x, dateret den x. måned 2013”"]
["Licensmail til ansøger + cc sagsbehandler ",null,null,null,"Lav og send mail sammen med licens, faktura, mm."]
[]
[null,null,null,null,"Nordisk salg: send også ansøgningsskema."]
["OBS! ",null,null,null,"Finland joutsen@motiva.fi; "]
["cc til Norden, hvis salg i Norden",null,null,null,"Island anna.ragnarsdottir@umhverfisstofnun.is;"]
[null,null,null,null,"Norge lisens@ecolabel.no; "]
[null,null,null,null,"Sverige licens@svanen.se"]
[]
[null,null,null,null,"Salg i Norge: Husk at vedhæfte etiketter for kemisk tekniske produkter!"]
[]
["KTU",null,null,null,"Kundetilfredshedsmåling."]
["Hvis ny og fornyet licens."]
["Gælder: dansk og udenlandsk kunde.",null,null,null,"Send mail til Randie med underprojekt nr."]
[]
["Slutkontrol godkendt",null,null,null,"Dato + initialer"]
[]
["Evt. bemærkninger vedr. slutkontrol"]
[]
["Sagsnotat ","Benyttes hvis ansøgningen ej kræver fuld tjekliste."]
["eller"]
["Fuld tjekliste ","Dette tjeklistehoved kopieres ind øverst i tjeklisten for den pågældende produktgruppe."]
["Sagsnotat"]
[null,null,"Udfyldes ved "]
["Udfyldes ved behandling af ansøgning",null,"faglig kontrol"]

{"sheet":"Framsida SE","index":3,"n_rows":14,"n_cols":7,"rows_kept":14,"cut":false,"hidden":true,"merged":[]}
["Checklista"]
["PG - XXXXX"]
["Version X.X • dd Månad 20XX – dd Månad 20XX"]
[]
["Företag (ansökare)"]
["Tillverkare (namn och adress)"]
["Licensnummer"]
["Ansökan inkom (datum)"]
["Ärendetyp"]
["Produkter (inklusive storlekar)","Produktnamn:","Handelsnamn SE","Handelsnamn FI","Handelsnamn DK","Handelsnamn NO","Handelsnamn IS"]
[]
["Datum godkänd:"]
["Handläggare: "]
["Kontrollör: "]

{"sheet":"Framsida NO","index":4,"n_rows":14,"n_cols":7,"rows_kept":14,"cut":false,"hidden":true,"merged":[]}
["Checklista"]
["PG - XXXXX"]
["Version X.X • dd Månad 20XX – dd Månad 20XX"]
[]
["Företag (ansökare)"]
["Tillverkare (namn och adress)"]
["Licensnummer"]
["Ansökan inkom (datum)"]
["Ärendetyp"]
["Produkter (inklusive storlekar)","Produktnamn:","Handelsnamn SE","Handelsnamn FI","Handelsnamn DK","Handelsnamn NO","Handelsnamn IS"]
[]
["Datum godkänd:"]
["Handläggare: "]
["Kontrollör: "]

{"sheet":"Documents","index":5,"n_rows":10,"n_cols":1,"rows_kept":10,"cut":false,"hidden":true,"merged":[]}
["Documents"]
["Create hyperlink to the following documents"]
[]
["Product group"]
[]
["Interpretations & feedback from administrators"]
[]
["Creiteria document"]
[]
["Background document"]

{"sheet":"Summary","index":6,"n_rows":44,"n_cols":5,"rows_kept":44,"cut":false,"hidden":false,"merged":[]}
["Summary"]
[null,"Applicant","HL","KL","Comments"]
["PG-def.",{"$f":"((INDIRECT(\"'\"&A3&\"'!C2\")))","v":"Please select status"},{"$f":"((INDIRECT(\"'\"&A3&\"'!C3\")))","v":"Please select status"},{"$f":"(INDIRECT(\"'\"&A3&\"'!C4\"))","v":"Please select status"},{"$f":"IF(INDIRECT(\"'\"&A3&\"'!B8\")=0,\"\",INDIRECT(\"'\"&A3&\"'!B8\"))","v":""}]
["R1",{"$f":"((INDIRECT(\"'\"&A4&\"'!C2\")))","v":"Please select status"},{"$f":"((INDIRECT(\"'\"&A4&\"'!C3\")))","v":"Please select status"},{"$f":"(INDIRECT(\"'\"&A4&\"'!C4\"))","v":"Please select status"},{"$f":"IF(INDIRECT(\"'\"&A4&\"'!B8\")=0,\"\",INDIRECT(\"'\"&A4&\"'!B8\"))","v":""}]
["R2","Please select status","Please select status","Please select status",""]
["R3","Please select status","Please select status","Please select status",""]
["R4","Please select status","Please select status","Please select status",""]
["R5","Please select status","Please select status","Please select status",""]
["R6","Please select status","Please select status","Please select status",""]
["R7","Please select status","Please select status","Please select status",""]
["R8","Please select status","Please select status","Please select status",""]
["R9","Please select status","Please select status","Please select status",""]
["R10","Please select status","Please select status","Please select status",""]
["R11","Please select status","Please select status","Please select status",""]
["R12","Please select status","Please select status","Please select status",""]
["R13","Please select status","Please select status","Please select status",""]
["R14","Please select status","Please select status","Please select status",""]
["R15","Please select status","Please select status","Please select status",""]
["R16","Please select status","Please select status","Please select status",""]
["R17","Please select status","Please select status","Please select status",""]
["R18","Please select status","Please select status","Please select status",""]
["R19","Please select status","Please select status","Please select status",""]
["R20","Please select status","Please select status","Please select status",""]
["R21","Please select status","Please select status","Please select status",""]
["R22","Please select status","Please select status","Please select status",""]
["R23","Please select status","Please select status","Please select status",""]
["R24","Please select status","Please select status","Please select status",""]
["R25","Please select status","Please select status","Please select status",""]
["R26","Please select status","Please select status","Please select status",""]
["R27","Please select status","Please select status","Please select status",""]
["R28","Please select status","Please select status","Please select status",""]
["R29","Please select status","Please select status","Please select status",""]
["R30","Please select status","Please select status","Please select status",""]
["R31",{"$f":"((INDIRECT(\"'\"&A34&\"'!C2\")))","v":"Please select status"},{"$f":"((INDIRECT(\"'\"&A34&\"'!C3\")))","v":"Please select status"},{"$f":"(INDIRECT(\"'\"&A34&\"'!C4\"))","v":"Please select status"},{"$f":"IF(INDIRECT(\"'\"&A34&\"'!B8\")=0,\"\",INDIRECT(\"'\"&A34&\"'!B8\"))","v":""}]
["R32","Please select status","Please select status","Please select status",""]
["R33","Please select status","Please select status","Please select status",""]
["R34","Please select status","Please select status","Please select status",""]
["R35","Please select status","Please select status","Please select status",""]
["R36","Please select status","Please select status","Please select status",""]
["R37","Please select status","Please select status","Please select status",""]
["R38","Please select status","Please select status","Please select status",""]
["R39","Please select status","Please select status","Please select status",""]
["R40","Please select status","Please select status","Please select status",""]
["R41","Please select status","Please select status","Please select status",""]

{"sheet":"PG-def.","index":7,"n_rows":21,"n_cols":5,"rows_kept":21,"cut":false,"hidden":false,"merged":[[0,0,9,0],[4,1,4,3],[5,1,5,3],[6,1,6,3],[7,1,7,3],[8,1,8,3],[9,1,9,3],[10,0,10,3],[12,0,12,3],[13,0,13,3],[18,1,18,3],[19,1,19,3],[14,0,14,3],[15,0,15,3],[16,0,16,3]]}
["Paste in requirement","Does the product/service fulfill the requirement?",null,null,"Please select status"]
[null,"Applicant:","Please select status",null,"Yes"]
[null,"Administrator","Please select status",null,"No"]
[null,"Controller: ","Please select status",null,"Documentation missing"]
[null,"Comments applicant (Regarding the documentation sent in)",null,null,"N.A."]
[null,"Write an explanation for how the products fulfill this requirement and which documentation that supports the fulfillment"]
[null,"Comments administrator (about the status of the requirement (for the summary)"]
[]
[null,"Comments administrators (Regarding the documentation sent in)"]
[]
["Documentation:"]
["Name of document + create a hyperlink to the documentation"]
[]
[]
[]
[]
[]
["Interpretation and comments from administrators"]
["Are there interpertation for this requirement:","Are there feedback from administrators on this requirement:",null,null,"Please select status"]
["Please select status","Please select status",null,null,"Yes"]
[null,null,{"$f":"IFERROR(VLOOKUP(\"activesheetname\",#REF!,3),\"\")","v":""},{"$f":"IFERROR(VLOOKUP(\"activesheetname\",#REF!,4),\"\")","v":""},"No"]

{"sheet":"R1","index":8,"n_rows":21,"n_cols":5,"rows_kept":21,"cut":false,"hidden":false,"merged":[[18,1,18,3],[19,1,19,3],[14,0,14,3],[15,0,15,3],[16,0,16,3],[10,0,10,3],[12,0,12,3],[13,0,13,3],[0,0,9,0],[4,1,4,3],[5,1,5,3],[6,1,6,3],[7,1,7,3],[8,1,8,3],[9,1,9,3]]}
["Paste in requirement","Does the product/service fulfill the requirement?",null,null,"Please select status"]
[null,"Applicant:","Please select status",null,"Yes"]
[null,"Administrator","Please select status",null,"No"]
[null,"Controller: ","Please select status",null,"Documentation missing"]
[null,"Comments applicant (Regarding the documentation sent in)",null,null,"N.A."]
[null,"Write an explanation for how the products fulfill this requirement and which documentation that supports the fulfillment"]
[null,"Comments administrator (about the status of the requirement (for the summary)"]
[]
[null,"Comments administrators (Regarding the documentation sent in)"]
[]
["Documentation:"]
["Name of document + create a hyperlink to the documentation"]
[]
[]
[]
[]
[]
["Interpretation and comments from administrators"]
["Are there interpertation for this requirement:","Are there feedback from administrators on this requirement:",null,null,"Please select status"]
["Please select status","Please select status",null,null,"Yes"]
[null,null,{"$f":"IFERROR(VLOOKUP(\"activesheetname\",#REF!,3),\"\")","v":""},{"$f":"IFERROR(VLOOKUP(\"activesheetname\",#REF!,4),\"\")","v":""},"No"]

{"sheet":"R2","index":9,"n_rows":21,"n_cols":5,"rows_kept":21,"cut":false,"hidden":false,"merged":[[18,1,18,3],[19,1,19,3],[14,0,14,3],[15,0,15,3],[16,0,16,3],[10,0,10,3],[12,0,12,3],[13,0,13,3],[0,0,9,0],[4,1,4,3],[5,1,5,3],[6,1,6,3],[7,1,7,3],[8,1,8,3],[9,1,9,3]]}
["Paste in requirement","Does the product/service fulfill the requirement?",null,null,"Please select status"]
[null,"Applicant:","Please select status",null,"Yes"]
[null,"Administrator","Please select status",null,"No"]
[null,"Controller: ","Please select status",null,"Documentation missing"]
[null,"Comments applicant (Regarding the documentation sent in)",null,null,"N.A."]
[null,"Write an explanation for how the products fulfill this requirement and which documentation that supports the fulfillment"]
[null,"Comments administrator (about the status of the requirement (for the summary)"]
[]
[null,"Comments administrators (Regarding the documentation sent in)"]
[]
["Documentation:"]
["Name of document + create a hyperlink to the documentation"]
[]
[]
[]
[]
[]
["Interpretation and comments from administrators"]
["Are there interpertation for this requirement:","Are there feedback from administrators on this requirement:",null,null,"Please select status"]
["Please select status","Please select status",null,null,"Yes"]
[null,null,{"$f":"IFERROR(VLOOKUP(\"activesheetname\",#REF!,3),\"\")","v":""},{"$f":"IFERROR(VLOOKUP(\"activesheetname\",#REF!,4),\"\")","v":""},"No"]

{"sheet":"R3","index":10,"n_rows":21,"n_cols":5,"rows_kept":21,"cut":false,"hidden":false,"merged":[[18,1,18,3],[19,1,19,3],[14,0,14,3],[15,0,15,3],[16,0,16,3],[10,0,10,3],[12,0,12,3],[13,0,13,3],[0,0,9,0],[4,1,4,3],[5,1,5,3],[6,1,6,3],[7,1,7,3],[8,1,8,3],[9,1,9,3]]}
[null,"Does the product/service fulfill the requirement?",null,null,"Please select status"]
[null,"Applicant:","Please select status",null,"Yes"]
[null,"Administrator","Please select status",null,"No"]
[null,"Controller: ","Please select status",null,"Documentation missing"]
[null,"Comments applicant (Regarding the documentation sent in)",null,null,"N.A."]
[null,"Write an explanation for how the products fulfill this requirement and which documentation that supports the fulfillment"]
[null,"Comments administrator (about the status of the requirement (for the summary)"]
[]
[null,"Comments administrators (Regarding the documentation sent in)"]
[]
["Documentation:"]
["Name of document + create a hyperlink to the documentation"]
[]
[]
[]
[]
[]
["Interpretation and comments from administrators"]
["Are there interpertation for this requirement:","Are there feedback from administrators on this requirement:",null,null,"Please select status"]
["Please select status","Please select status",null,null,"Yes"]
[null,null,{"$f":"IFERROR(VLOOKUP(\"activesheetname\",#REF!,3),\"\")","v":""},{"$f":"IFERROR(VLOOKUP(\"activesheetname\",#REF!,4),\"\")","v":""},"No"]

{"sheet":"R4","index":11,"n_rows":21,"n_cols":5,"rows_kept":21,"cut":false,"hidden":false,"merged":[[18,1,18,3],[19,1,19,3],[14,0,14,3],[15,0,15,3],[16,0,16,3],[10,0,10,3],[12,0,12,3],[13,0,13,3],[0,0,9,0],[4,1,4,3],[5,1,5,3],[6,1,6,3],[7,1,7,3],[8,1,8,3],[9,1,9,3]]}
["Paste in requirement","Does the product/service fulfill the requirement?",null,null,"Please select status"]
[null,"Applicant:","Please select status",null,"Yes"]
[null,"Administrator","Please select status",null,"No"]
[null,"Controller: ","Please select status",null,"Documentation missing"]
[null,"Comments applicant (Regarding the documentation sent in)",null,null,"N.A."]
[null,"Write an explanation for how the products fulfill this requirement and which documentation that supports the fulfillment"]
[null,"Comments administrator (about the status of the requirement (for the summary)"]
[]
[null,"Comments administrators (Regarding the documentation sent in)"]
[]
["Documentation:"]
["Name of document + create a hyperlink to the documentation"]
[]
[]
[]
[]
[]
["Interpretation and comments from administrators"]
["Are there interpertation for this requirement:","Are there feedback from administrators on this requirement:",null,null,"Please select status"]
["Please select status","Please select status",null,null,"Yes"]
[null,null,{"$f":"IFERROR(VLOOKUP(\"activesheetname\",#REF!,3),\"\")","v":""},{"$f":"IFERROR(VLOOKUP(\"activesheetname\",#REF!,4),\"\")","v":""},"No"]

{"sheet":"R5","index":12,"n_rows":21,"n_cols":5,"rows_kept":21,"cut":false,"hidden":false,"merged":[[18,1,18,3],[19,1,19,3],[14,0,14,3],[15,0,15,3],[16,0,16,3],[10,0,10,3],[12,0,12,3],[13,0,13,3],[0,0,9,0],[4,1,4,3],[5,1,5,3],[6,1,6,3],[7,1,7,3],[8,1,8,3],[9,1,9,3]]}
["Paste in requirement","Does the product/service fulfill the requirement?",null,null,"Please select status"]
[null,"Applicant:","Please select status",null,"Yes"]
[null,"Administrator","Please select status",null,"No"]
[null,"Controller: ","Please select status",null,"Documentation missing"]
[null,"Comments applicant (Regarding the documentation sent in)",null,null,"N.A."]
[null,"Write an explanation for how the products fulfill this requirement and which documentation that supports the fulfillment"]
[null,"Comments administrator (about the status of the requirement (for the summary)"]
[]
[null,"Comments administrators (Regarding the documentation sent in)"]
[]
["Documentation:"]
["Name of document + create a hyperlink to the documentation"]
[]
[]
[]
[]
[]
["Interpretation and comments from administrators"]
["Are there interpertation for this requirement:","Are there feedback from administrators on this requirement:",null,null,"Please select status"]
["Please select status","Please select status",null,null,"Yes"]
[null,null,{"$f":"IFERROR(VLOOKUP(\"activesheetname\",#REF!,3),\"\")","v":""},{"$f":"IFERROR(VLOOKUP(\"activesheetname\",#REF!,4),\"\")","v":""},"No"]

{"sheet":"R6","index":13,"n_rows":21,"n_cols":5,"rows_kept":21,"cut":false,"hidden":false,"merged":[[18,1,18,3],[19,1,19,3],[14,0,14,3],[15,0,15,3],[16,0,16,3],[10,0,10,3],[12,0,12,3],[13,0,13,3],[0,0,9,0],[4,1,4,3],[5,1,5,3],[6,1,6,3],[7,1,7,3],[8,1,8,3],[9,1,9,3]]}
["Paste in requirement","Does the product/service fulfill the requirement?",null,null,"Please select status"]
[null,"Applicant:","Please select status",null,"Yes"]
[null,"Administrator","Please select status",null,"No"]
[null,"Controller: ","Please select status",null,"Documentation missing"]
[null,"Comments applicant (Regarding the documentation sent in)",null,null,"N.A."]
[null,"Write an explanation for how the products fulfill this requirement and which documentation that supports the fulfillment"]
[null,"Comments administrator (about the status of the requirement (for the summary)"]
[]
[null,"Comments administrators (Regarding the documentation sent in)"]
[]
["Documentation:"]
["Name of document + create a hyperlink to the documentation"]
[]
[]
[]
[]
[]
["Interpretation and comments from administrators"]
["Are there interpertation for this requirement:","Are there feedback from administrators on this requirement:",null,null,"Please select status"]
["Please select status","Please select status",null,null,"Yes"]
[null,null,{"$f":"IFERROR(VLOOKUP(\"activesheetname\",#REF!,3),\"\")","v":""},{"$f":"IFERROR(VLOOKUP(\"activesheetname\",#REF!,4),\"\")","v":""},"No"]

{"sheet":"R7","index":14,"n_rows":21,"n_cols":5,"rows_kept":21,"cut":false,"hidden":false,"merged":[[18,1,18,3],[19,1,19,3],[14,0,14,3],[15,0,15,3],[16,0,16,3],[10,0,10,3],[12,0,12,3],[13,0,13,3],[0,0,9,0],[4,1,4,3],[5,1,5,3],[6,1,6,3],[7,1,7,3],[8,1,8,3],[9,1,9,3]]}
[null,"Does the product/service fulfill the requirement?",null,null,"Please select status"]
[null,"Applicant:","Please select status",null,"Yes"]
[null,"Administrator","Please select status",null,"No"]
[null,"Controller: ","Please select status",null,"Documentation missing"]
[null,"Comments applicant (Regarding the documentation sent in)",null,null,"N.A."]
[null,"Write an explanation for how the products fulfill this requirement and which documentation that supports the fulfillment"]
[null,"Comments administrator (about the status of the requirement (for the summary)"]
[]
[null,"Comments administrators (Regarding the documentation sent in)"]
[]
["Documentation:"]
["Name of document + create a hyperlink to the documentation"]
[]
[]
[]
[]
[]
["Interpretation and comments from administrators"]
["Are there interpertation for this requirement:","Are there feedback from administrators on this requirement:",null,null,"Please select status"]
["Please select status","Please select status",null,null,"Yes"]
[null,null,{"$f":"IFERROR(VLOOKUP(\"activesheetname\",#REF!,3),\"\")","v":""},{"$f":"IFERROR(VLOOKUP(\"activesheetname\",#REF!,4),\"\")","v":""},"No"]

{"sheet":"R8","index":15,"n_rows":21,"n_cols":5,"rows_kept":21,"cut":false,"hidden":false,"merged":[[18,1,18,3],[19,1,19,3],[14,0,14,3],[15,0,15,3],[16,0,16,3],[10,0,10,3],[12,0,12,3],[13,0,13,3],[0,0,9,0],[4,1,4,3],[5,1,5,3],[6,1,6,3],[7,1,7,3],[8,1,8,3],[9,1,9,3]]}
["Paste in requirement","Does the product/service fulfill the requirement?",null,null,"Please select status"]
[null,"Applicant:","Please select status",null,"Yes"]
[null,"Administrator","Please select status",null,"No"]
[null,"Controller: ","Please select status",null,"Documentation missing"]
[null,"Comments applicant (Regarding the documentation sent in)",null,null,"N.A."]
[null,"Write an explanation for how the products fulfill this requirement and which documentation that supports the fulfillment"]
[null,"Comments administrator (about the status of the requirement (for the summary)"]
[]
[null,"Comments administrators (Regarding the documentation sent in)"]
[]
["Documentation:"]
["Name of document + create a hyperlink to the documentation"]
[]
[]
[]
[]
[]
["Interpretation and comments from administrators"]
["Are there interpertation for this requirement:","Are there feedback from administrators on this requirement:",null,null,"Please select status"]
["Please select status","Please select status",null,null,"Yes"]
[null,null,{"$f":"IFERROR(VLOOKUP(\"activesheetname\",#REF!,3),\"\")","v":""},{"$f":"IFERROR(VLOOKUP(\"activesheetname\",#REF!,4),\"\")","v":""},"No"]

{"sheet":"R9","index":16,"n_rows":21,"n_cols":5,"rows_kept":21,"cut":false,"hidden":false,"merged":[[18,1,18,3],[19,1,19,3],[14,0,14,3],[15,0,15,3],[16,0,16,3],[10,0,10,3],[12,0,12,3],[13,0,13,3],[0,0,9,0],[4,1,4,3],[5,1,5,3],[6,1,6,3],[7,1,7,3],[8,1,8,3],[9,1,9,3]]}
["Paste in requirement","Does the product/service fulfill the requirement?",null,null,"Please select status"]
[null,"Applicant:","Please select status",null,"Yes"]
[null,"Administrator","Please select status",null,"No"]
[null,"Controller: ","Please select status",null,"Documentation missing"]
[null,"Comments applicant (Regarding the documentation sent in)",null,null,"N.A."]
[null,"Write an explanation for how the products fulfill this requirement and which documentation that supports the fulfillment"]
[null,"Comments administrator (about the status of the requirement (for the summary)"]
[]
[null,"Comments administrators (Regarding the documentation sent in)"]
[]
["Documentation:"]
["Name of document + create a hyperlink to the documentation"]
[]
[]
[]
[]
[]
["Interpretation and comments from administrators"]
["Are there interpertation for this requirement:","Are there feedback from administrators on this requirement:",null,null,"Please select status"]
["Please select status","Please select status",null,null,"Yes"]
[null,null,{"$f":"IFERROR(VLOOKUP(\"activesheetname\",#REF!,3),\"\")","v":""},{"$f":"IFERROR(VLOOKUP(\"activesheetname\",#REF!,4),\"\")","v":""},"No"]

{"sheet":"R10","index":17,"n_rows":21,"n_cols":5,"rows_kept":21,"cut":false,"hidden":false,"merged":[[18,1,18,3],[19,1,19,3],[14,0,14,3],[15,0,15,3],[16,0,16,3],[10,0,10,3],[12,0,12,3],[13,0,13,3],[0,0,9,0],[4,1,4,3],[5,1,5,3],[6,1,6,3],[7,1,7,3],[8,1,8,3],[9,1,9,3]]}
[null,"Does the product/service fulfill the requirement?",null,null,"Please select status"]
[null,"Applicant:","Please select status",null,"Yes"]
[null,"Administrator","Please select status",null,"No"]
[null,"Controller: ","Please select status",null,"Documentation missing"]
[null,"Comments applicant (Regarding the documentation sent in)",null,null,"N.A."]
[null,"Write an explanation for how the products fulfill this requirement and which documentation that supports the fulfillment"]
[null,"Comments administrator (about the status of the requirement (for the summary)"]
[]
[null,"Comments administrators (Regarding the documentation sent in)"]
[]
["Documentation:"]
["Name of document + create a hyperlink to the documentation"]
[]
[]
[]
[]
[]
["Interpretation and comments from administrators"]
["Are there interpertation for this requirement:","Are there feedback from administrators on this requirement:",null,null,"Please select status"]
["Please select status","Please select status",null,null,"Yes"]
[null,null,{"$f":"IFERROR(VLOOKUP(\"activesheetname\",#REF!,3),\"\")","v":""},{"$f":"IFERROR(VLOOKUP(\"activesheetname\",#REF!,4),\"\")","v":""},"No"]

{"sheet":"R11","index":18,"n_rows":21,"n_cols":5,"rows_kept":21,"cut":false,"hidden":false,"merged":[[18,1,18,3],[19,1,19,3],[14,0,14,3],[15,0,15,3],[16,0,16,3],[10,0,10,3],[12,0,12,3],[13,0,13,3],[0,0,9,0],[4,1,4,3],[5,1,5,3],[6,1,6,3],[7,1,7,3],[8,1,8,3],[9,1,9,3]]}
["Paste in requirement","Does the product/service fulfill the requirement?",null,null,"Please select status"]
[null,"Applicant:","Please select status",null,"Yes"]
[null,"Administrator","Please select status",null,"No"]
[null,"Controller: ","Please select status",null,"Documentation missing"]
[null,"Comments applicant (Regarding the documentation sent in)",null,null,"N.A."]
[null,"Write an explanation for how the products fulfill this requirement and which documentation that supports the fulfillment"]
[null,"Comments administrator (about the status of the requirement (for the summary)"]
[]
[null,"Comments administrators (Regarding the documentation sent in)"]
[]
["Documentation:"]
["Name of document + create a hyperlink to the documentation"]
[]
[]
[]
[]
[]
["Interpretation and comments from administrators"]
["Are there interpertation for this requirement:","Are there feedback from administrators on this requirement:",null,null,"Please select status"]
["Please select status","Please select status",null,null,"Yes"]
[null,null,{"$f":"IFERROR(VLOOKUP(\"activesheetname\",#REF!,3),\"\")","v":""},{"$f":"IFERROR(VLOOKUP(\"activesheetname\",#REF!,4),\"\")","v":""},"No"]

{"sheet":"R12","index":19,"n_rows":21,"n_cols":5,"rows_kept":21,"cut":false,"hidden":false,"merged":[[18,1,18,3],[19,1,19,3],[14,0,14,3],[15,0,15,3],[16,0,16,3],[10,0,10,3],[12,0,12,3],[13,0,13,3],[0,0,9,0],[4,1,4,3],[5,1,5,3],[6,1,6,3],[7,1,7,3],[8,1,8,3],[9,1,9,3]]}
["Paste in requirement","Does the product/service fulfill the requirement?",null,null,"Please select status"]
[null,"Applicant:","Please select status",null,"Yes"]
[null,"Administrator","Please select status",null,"No"]
[null,"Controller: ","Please select status",null,"Documentation missing"]
[null,"Comments applicant (Regarding the documentation sent in)",null,null,"N.A."]
[null,"Write an explanation for how the products fulfill this requirement and which documentation that supports the fulfillment"]
[null,"Comments administrator (about the status of the requirement (for the summary)"]
[]
[null,"Comments administrators (Regarding the documentation sent in)"]
[]
["Documentation:"]
["Name of document + create a hyperlink to the documentation"]
[]
[]
[]
[]
[]
["Interpretation and comments from administrators"]
["Are there interpertation for this requirement:","Are there feedback from administrators on this requirement:",null,null,"Please select status"]
["Please select status","Please select status",null,null,"Yes"]
[null,null,{"$f":"IFERROR(VLOOKUP(\"activesheetname\",#REF!,3),\"\")","v":""},{"$f":"IFERROR(VLOOKUP(\"activesheetname\",#REF!,4),\"\")","v":""},"No"]

{"sheet":"R13","index":20,"n_rows":21,"n_cols":5,"rows_kept":21,"cut":false,"hidden":false,"merged":[[18,1,18,3],[19,1,19,3],[14,0,14,3],[15,0,15,3],[16,0,16,3],[10,0,10,3],[12,0,12,3],[13,0,13,3],[0,0,9,0],[4,1,4,3],[5,1,5,3],[6,1,6,3],[7,1,7,3],[8,1,8,3],[9,1,9,3]]}
["Paste in requirement","Does the product/service fulfill the requirement?",null,null,"Please select status"]
[null,"Applicant:","Please select status",null,"Yes"]
[null,"Administrator","Please select status",null,"No"]
[null,"Controller: ","Please select status",null,"Documentation missing"]
[null,"Comments applicant (Regarding the documentation sent in)",null,null,"N.A."]
[null,"Write an explanation for how the products fulfill this requirement and which documentation that supports the fulfillment"]
[null,"Comments administrator (about the status of the requirement (for the summary)"]
[]
[null,"Comments administrators (Regarding the documentation sent in)"]
[]
["Documentation:"]
["Name of document + create a hyperlink to the documentation"]
[]
[]
[]
[]
[]
["Interpretation and comments from administrators"]
["Are there interpertation for this requirement:","Are there feedback from administrators on this requirement:",null,null,"Please select status"]
["Please select status","Please select status",null,null,"Yes"]
[null,null,{"$f":"IFERROR(VLOOKUP(\"activesheetname\",#REF!,3),\"\")","v":""},{"$f":"IFERROR(VLOOKUP(\"activesheetname\",#REF!,4),\"\")","v":""},"No"]

{"sheet":"R14","index":21,"n_rows":21,"n_cols":5,"rows_kept":21,"cut":false,"hidden":false,"merged":[[18,1,18,3],[19,1,19,3],[14,0,14,3],[15,0,15,3],[16,0,16,3],[10,0,10,3],[12,0,12,3],[13,0,13,3],[0,0,9,0],[4,1,4,3],[5,1,5,3],[6,1,6,3],[7,1,7,3],[8,1,8,3],[9,1,9,3]]}
["Paste in requirement","Does the product/service fulfill the requirement?",null,null,"Please select status"]
[null,"Applicant:","Please select status",null,"Yes"]
[null,"Administrator","Please select status",null,"No"]
[null,"Controller: ","Please select status",null,"Documentation missing"]
[null,"Comments applicant (Regarding the documentation sent in)",null,null,"N.A."]
[null,"Write an explanation for how the products fulfill this requirement and which documentation that supports the fulfillment"]
[null,"Comments administrator (about the status of the requirement (for the summary)"]
[]
[null,"Comments administrators (Regarding the documentation sent in)"]
[]
["Documentation:"]
["Name of document + create a hyperlink to the documentation"]
[]
[]
[]
[]
[]
["Interpretation and comments from administrators"]
["Are there interpertation for this requirement:","Are there feedback from administrators on this requirement:",null,null,"Please select status"]
["Please select status","Please select status",null,null,"Yes"]
[null,null,{"$f":"IFERROR(VLOOKUP(\"activesheetname\",#REF!,3),\"\")","v":""},{"$f":"IFERROR(VLOOKUP(\"activesheetname\",#REF!,4),\"\")","v":""},"No"]

{"sheet":"R15","index":22,"n_rows":21,"n_cols":5,"rows_kept":21,"cut":false,"hidden":false,"merged":[[18,1,18,3],[19,1,19,3],[14,0,14,3],[15,0,15,3],[16,0,16,3],[10,0,10,3],[12,0,12,3],[13,0,13,3],[0,0,9,0],[4,1,4,3],[5,1,5,3],[6,1,6,3],[7,1,7,3],[8,1,8,3],[9,1,9,3]]}
[null,"Does the product/service fulfill the requirement?",null,null,"Please select status"]
[null,"Applicant:","Please select status",null,"Yes"]
[null,"Administrator","Please select status",null,"No"]
[null,"Controller: ","Please select status",null,"Documentation missing"]
[null,"Comments applicant (Regarding the documentation sent in)",null,null,"N.A."]
[null,"Write an explanation for how the products fulfill this requirement and which documentation that supports the fulfillment"]
[null,"Comments administrator (about the status of the requirement (for the summary)"]
[]
[null,"Comments administrators (Regarding the documentation sent in)"]
[]
["Documentation:"]
["Name of document + create a hyperlink to the documentation"]
[]
[]
[]
[]
[]
["Interpretation and comments from administrators"]
["Are there interpertation for this requirement:","Are there feedback from administrators on this requirement:",null,null,"Please select status"]
["Please select status","Please select status",null,null,"Yes"]
[null,null,{"$f":"IFERROR(VLOOKUP(\"activesheetname\",#REF!,3),\"\")","v":""},{"$f":"IFERROR(VLOOKUP(\"activesheetname\",#REF!,4),\"\")","v":""},"No"]

{"sheet":"R16","index":23,"n_rows":21,"n_cols":5,"rows_kept":21,"cut":false,"hidden":false,"merged":[[18,1,18,3],[19,1,19,3],[14,0,14,3],[15,0,15,3],[16,0,16,3],[10,0,10,3],[12,0,12,3],[13,0,13,3],[0,0,9,0],[4,1,4,3],[5,1,5,3],[6,1,6,3],[7,1,7,3],[8,1,8,3],[9,1,9,3]]}
["Paste in requirement","Does the product/service fulfill the requirement?",null,null,"Please select status"]
[null,"Applicant:","Please select status",null,"Yes"]
[null,"Administrator","Please select status",null,"No"]
[null,"Controller: ","Please select status",null,"Documentation missing"]
[null,"Comments applicant (Regarding the documentation sent in)",null,null,"N.A."]
[null,"Write an explanation for how the products fulfill this requirement and which documentation that supports the fulfillment"]
[null,"Comments administrator (about the status of the requirement (for the summary)"]
[]
[null,"Comments administrators (Regarding the documentation sent in)"]
[]
["Documentation:"]
["Name of document + create a hyperlink to the documentation"]
[]
[]
[]
[]
[]
["Interpretation and comments from administrators"]
["Are there interpertation for this requirement:","Are there feedback from administrators on this requirement:",null,null,"Please select status"]
["Please select status","Please select status",null,null,"Yes"]
[null,null,{"$f":"IFERROR(VLOOKUP(\"activesheetname\",#REF!,3),\"\")","v":""},{"$f":"IFERROR(VLOOKUP(\"activesheetname\",#REF!,4),\"\")","v":""},"No"]

{"sheet":"R17","index":24,"n_rows":21,"n_cols":5,"rows_kept":21,"cut":false,"hidden":false,"merged":[[18,1,18,3],[19,1,19,3],[14,0,14,3],[15,0,15,3],[16,0,16,3],[10,0,10,3],[12,0,12,3],[13,0,13,3],[0,0,9,0],[4,1,4,3],[5,1,5,3],[6,1,6,3],[7,1,7,3],[8,1,8,3],[9,1,9,3]]}
[null,"Does the product/service fulfill the requirement?",null,null,"Please select status"]
[null,"Applicant:","Please select status",null,"Yes"]
[null,"Administrator","Please select status",null,"No"]
[null,"Controller: ","Please select status",null,"Documentation missing"]
[null,"Comments applicant (Regarding the documentation sent in)",null,null,"N.A."]
[null,"Write an explanation for how the products fulfill this requirement and which documentation that supports the fulfillment"]
[null,"Comments administrator (about the status of the requirement (for the summary)"]
[]
[null,"Comments administrators (Regarding the documentation sent in)"]
[]
["Documentation:"]
["Name of document + create a hyperlink to the documentation"]
[]
[]
[]
[]
[]
["Interpretation and comments from administrators"]
["Are there interpertation for this requirement:","Are there feedback from administrators on this requirement:",null,null,"Please select status"]
["Please select status","Please select status",null,null,"Yes"]
[null,null,{"$f":"IFERROR(VLOOKUP(\"activesheetname\",#REF!,3),\"\")","v":""},{"$f":"IFERROR(VLOOKUP(\"activesheetname\",#REF!,4),\"\")","v":""},"No"]

{"sheet":"R18","index":25,"n_rows":21,"n_cols":5,"rows_kept":21,"cut":false,"hidden":false,"merged":[[18,1,18,3],[19,1,19,3],[14,0,14,3],[15,0,15,3],[16,0,16,3],[10,0,10,3],[12,0,12,3],[13,0,13,3],[0,0,9,0],[4,1,4,3],[5,1,5,3],[6,1,6,3],[7,1,7,3],[8,1,8,3],[9,1,9,3]]}
[null,"Does the product/service fulfill the requirement?",null,null,"Please select status"]
[null,"Applicant:","Please select status",null,"Yes"]
[null,"Administrator","Please select status",null,"No"]
[null,"Controller: ","Please select status",null,"Documentation missing"]
[null,"Comments applicant (Regarding the documentation sent in)",null,null,"N.A."]
[null,"Write an explanation for how the products fulfill this requirement and which documentation that supports the fulfillment"]
[null,"Comments administrator (about the status of the requirement (for the summary)"]
[]
[null,"Comments administrators (Regarding the documentation sent in)"]
[]
["Documentation:"]
["Name of document + create a hyperlink to the documentation"]
[]
[]
[]
[]
[]
["Interpretation and comments from administrators"]
["Are there interpertation for this requirement:","Are there feedback from administrators on this requirement:",null,null,"Please select status"]
["Please select status","Please select status",null,null,"Yes"]
[null,null,{"$f":"IFERROR(VLOOKUP(\"activesheetname\",#REF!,3),\"\")","v":""},{"$f":"IFERROR(VLOOKUP(\"activesheetname\",#REF!,4),\"\")","v":""},"No"]

{"sheet":"R19","index":26,"n_rows":21,"n_cols":5,"rows_kept":21,"cut":false,"hidden":false,"merged":[[18,1,18,3],[19,1,19,3],[14,0,14,3],[15,0,15,3],[16,0,16,3],[10,0,10,3],[12,0,12,3],[13,0,13,3],[0,0,9,0],[4,1,4,3],[5,1,5,3],[6,1,6,3],[7,1,7,3],[8,1,8,3],[9,1,9,3]]}
["Paste in requirement","Does the product/service fulfill the requirement?",null,null,"Please select status"]
[null,"Applicant:","Please select status",null,"Yes"]
[null,"Administrator","Please select status",null,"No"]
[null,"Controller: ","Please select status",null,"Documentation missing"]
[null,"Comments applicant (Regarding the documentation sent in)",null,null,"N.A."]
[null,"Write an explanation for how the products fulfill this requirement and which documentation that supports the fulfillment"]
[null,"Comments administrator (about the status of the requirement (for the summary)"]
[]
[null,"Comments administrators (Regarding the documentation sent in)"]
[]
["Documentation:"]
["Name of document + create a hyperlink to the documentation"]
[]
[]
[]
[]
[]
["Interpretation and comments from administrators"]
["Are there interpertation for this requirement:","Are there feedback from administrators on this requirement:",null,null,"Please select status"]
["Please select status","Please select status",null,null,"Yes"]
[null,null,{"$f":"IFERROR(VLOOKUP(\"activesheetname\",#REF!,3),\"\")","v":""},{"$f":"IFERROR(VLOOKUP(\"activesheetname\",#REF!,4),\"\")","v":""},"No"]

{"sheet":"R20","index":27,"n_rows":21,"n_cols":5,"rows_kept":21,"cut":false,"hidden":false,"merged":[[18,1,18,3],[19,1,19,3],[14,0,14,3],[15,0,15,3],[16,0,16,3],[10,0,10,3],[12,0,12,3],[13,0,13,3],[0,0,9,0],[4,1,4,3],[5,1,5,3],[6,1,6,3],[7,1,7,3],[8,1,8,3],[9,1,9,3]]}
[null,"Does the product/service fulfill the requirement?",null,null,"Please select status"]
[null,"Applicant:","Please select status",null,"Yes"]
[null,"Administrator","Please select status",null,"No"]
[null,"Controller: ","Please select status",null,"Documentation missing"]
[null,"Comments applicant (Regarding the documentation sent in)",null,null,"N.A."]
[null,"Write an explanation for how the products fulfill this requirement and which documentation that supports the fulfillment"]
[null,"Comments administrator (about the status of the requirement (for the summary)"]
[]
[null,"Comments administrators (Regarding the documentation sent in)"]
[]
["Documentation:"]
["Name of document + create a hyperlink to the documentation"]
[]
[]
[]
[]
[]
["Interpretation and comments from administrators"]
["Are there interpertation for this requirement:","Are there feedback from administrators on this requirement:",null,null,"Please select status"]
["Please select status","Please select status",null,null,"Yes"]
[null,null,{"$f":"IFERROR(VLOOKUP(\"activesheetname\",#REF!,3),\"\")","v":""},{"$f":"IFERROR(VLOOKUP(\"activesheetname\",#REF!,4),\"\")","v":""},"No"]

{"sheet":"R21","index":28,"n_rows":21,"n_cols":5,"rows_kept":21,"cut":false,"hidden":false,"merged":[[18,1,18,3],[19,1,19,3],[14,0,14,3],[15,0,15,3],[16,0,16,3],[10,0,10,3],[12,0,12,3],[13,0,13,3],[0,0,9,0],[4,1,4,3],[5,1,5,3],[6,1,6,3],[7,1,7,3],[8,1,8,3],[9,1,9,3]]}
[null,"Does the product/service fulfill the requirement?",null,null,"Please select status"]
[null,"Applicant:","Please select status",null,"Yes"]
[null,"Administrator","Please select status",null,"No"]
[null,"Controller: ","Please select status",null,"Documentation missing"]
[null,"Comments applicant (Regarding the documentation sent in)",null,null,"N.A."]
[null,"Write an explanation for how the products fulfill this requirement and which documentation that supports the fulfillment"]
[null,"Comments administrator (about the status of the requirement (for the summary)"]
[]
[null,"Comments administrators (Regarding the documentation sent in)"]
[]
["Documentation:"]
["Name of document + create a hyperlink to the documentation"]
[]
[]
[]
[]
[]
["Interpretation and comments from administrators"]
["Are there interpertation for this requirement:","Are there feedback from administrators on this requirement:",null,null,"Please select status"]
["Please select status","Please select status",null,null,"Yes"]
[null,null,{"$f":"IFERROR(VLOOKUP(\"activesheetname\",#REF!,3),\"\")","v":""},{"$f":"IFERROR(VLOOKUP(\"activesheetname\",#REF!,4),\"\")","v":""},"No"]

{"sheet":"R22","index":29,"n_rows":21,"n_cols":5,"rows_kept":21,"cut":false,"hidden":false,"merged":[[18,1,18,3],[19,1,19,3],[14,0,14,3],[15,0,15,3],[16,0,16,3],[10,0,10,3],[12,0,12,3],[13,0,13,3],[0,0,9,0],[4,1,4,3],[5,1,5,3],[6,1,6,3],[7,1,7,3],[8,1,8,3],[9,1,9,3]]}
["Paste in requirement","Does the product/service fulfill the requirement?",null,null,"Please select status"]
[null,"Applicant:","Please select status",null,"Yes"]
[null,"Administrator","Please select status",null,"No"]
[null,"Controller: ","Please select status",null,"Documentation missing"]
[null,"Comments applicant (Regarding the documentation sent in)",null,null,"N.A."]
[null,"Write an explanation for how the products fulfill this requirement and which documentation that supports the fulfillment"]
[null,"Comments administrator (about the status of the requirement (for the summary)"]
[]
[null,"Comments administrators (Regarding the documentation sent in)"]
[]
["Documentation:"]
["Name of document + create a hyperlink to the documentation"]
[]
[]
[]
[]
[]
["Interpretation and comments from administrators"]
["Are there interpertation for this requirement:","Are there feedback from administrators on this requirement:",null,null,"Please select status"]
["Please select status","Please select status",null,null,"Yes"]
[null,null,{"$f":"IFERROR(VLOOKUP(\"activesheetname\",#REF!,3),\"\")","v":""},{"$f":"IFERROR(VLOOKUP(\"activesheetname\",#REF!,4),\"\")","v":""},"No"]

{"sheet":"R23","index":30,"n_rows":21,"n_cols":5,"rows_kept":21,"cut":false,"hidden":false,"merged":[[18,1,18,3],[19,1,19,3],[14,0,14,3],[15,0,15,3],[16,0,16,3],[10,0,10,3],[12,0,12,3],[13,0,13,3],[0,0,9,0],[4,1,4,3],[5,1,5,3],[6,1,6,3],[7,1,7,3],[8,1,8,3],[9,1,9,3]]}
["Paste in requirement","Does the product/service fulfill the requirement?",null,null,"Please select status"]
[null,"Applicant:","Please select status",null,"Yes"]
[null,"Administrator","Please select status",null,"No"]
[null,"Controller: ","Please select status",null,"Documentation missing"]
[null,"Comments applicant (Regarding the documentation sent in)",null,null,"N.A."]
[null,"Write an explanation for how the products fulfill this requirement and which documentation that supports the fulfillment"]
[null,"Comments administrator (about the status of the requirement (for the summary)"]
[]
[null,"Comments administrators (Regarding the documentation sent in)"]
[]
["Documentation:"]
["Name of document + create a hyperlink to the documentation"]
[]
[]
[]
[]
[]
["Interpretation and comments from administrators"]
["Are there interpertation for this requirement:","Are there feedback from administrators on this requirement:",null,null,"Please select status"]
["Please select status","Please select status",null,null,"Yes"]
[null,null,{"$f":"IFERROR(VLOOKUP(\"activesheetname\",#REF!,3),\"\")","v":""},{"$f":"IFERROR(VLOOKUP(\"activesheetname\",#REF!,4),\"\")","v":""},"No"]

{"sheet":"R24","index":31,"n_rows":21,"n_cols":5,"rows_kept":21,"cut":false,"hidden":false,"merged":[[18,1,18,3],[19,1,19,3],[14,0,14,3],[15,0,15,3],[16,0,16,3],[10,0,10,3],[12,0,12,3],[13,0,13,3],[0,0,9,0],[4,1,4,3],[5,1,5,3],[6,1,6,3],[7,1,7,3],[8,1,8,3],[9,1,9,3]]}
["Paste in requirement","Does the product/service fulfill the requirement?",null,null,"Please select status"]
[null,"Applicant:","Please select status",null,"Yes"]
[null,"Administrator","Please select status",null,"No"]
[null,"Controller: ","Please select status",null,"Documentation missing"]
[null,"Comments applicant (Regarding the documentation sent in)",null,null,"N.A."]
[null,"Write an explanation for how the products fulfill this requirement and which documentation that supports the fulfillment"]
[null,"Comments administrator (about the status of the requirement (for the summary)"]
[]
[null,"Comments administrators (Regarding the documentation sent in)"]
[]
["Documentation:"]
["Name of document + create a hyperlink to the documentation"]
[]
[]
[]
[]
[]
["Interpretation and comments from administrators"]
["Are there interpertation for this requirement:","Are there feedback from administrators on this requirement:",null,null,"Please select status"]
["Please select status","Please select status",null,null,"Yes"]
[null,null,{"$f":"IFERROR(VLOOKUP(\"activesheetname\",#REF!,3),\"\")","v":""},{"$f":"IFERROR(VLOOKUP(\"activesheetname\",#REF!,4),\"\")","v":""},"No"]

{"sheet":"R25","index":32,"n_rows":21,"n_cols":5,"rows_kept":21,"cut":false,"hidden":false,"merged":[[18,1,18,3],[19,1,19,3],[14,0,14,3],[15,0,15,3],[16,0,16,3],[10,0,10,3],[12,0,12,3],[13,0,13,3],[0,0,9,0],[4,1,4,3],[5,1,5,3],[6,1,6,3],[7,1,7,3],[8,1,8,3],[9,1,9,3]]}
["Paste in requirement","Does the product/service fulfill the requirement?",null,null,"Please select status"]
[null,"Applicant:","Please select status",null,"Yes"]
[null,"Administrator","Please select status",null,"No"]
[null,"Controller: ","Please select status",null,"Documentation missing"]
[null,"Comments applicant (Regarding the documentation sent in)",null,null,"N.A."]
[null,"Write an explanation for how the products fulfill this requirement and which documentation that supports the fulfillment"]
[null,"Comments administrator (about the status of the requirement (for the summary)"]
[]
[null,"Comments administrators (Regarding the documentation sent in)"]
[]
["Documentation:"]
["Name of document + create a hyperlink to the documentation"]
[]
[]
[]
[]
[]
["Interpretation and comments from administrators"]
["Are there interpertation for this requirement:","Are there feedback from administrators on this requirement:",null,null,"Please select status"]
["Please select status","Please select status",null,null,"Yes"]
[null,null,{"$f":"IFERROR(VLOOKUP(\"activesheetname\",#REF!,3),\"\")","v":""},{"$f":"IFERROR(VLOOKUP(\"activesheetname\",#REF!,4),\"\")","v":""},"No"]

{"sheet":"R26","index":33,"n_rows":21,"n_cols":5,"rows_kept":21,"cut":false,"hidden":false,"merged":[[18,1,18,3],[19,1,19,3],[14,0,14,3],[15,0,15,3],[16,0,16,3],[10,0,10,3],[12,0,12,3],[13,0,13,3],[0,0,9,0],[4,1,4,3],[5,1,5,3],[6,1,6,3],[7,1,7,3],[8,1,8,3],[9,1,9,3]]}
[null,"Does the product/service fulfill the requirement?",null,null,"Please select status"]
[null,"Applicant:","Please select status",null,"Yes"]
[null,"Administrator","Please select status",null,"No"]
[null,"Controller: ","Please select status",null,"Documentation missing"]
[null,"Comments applicant (Regarding the documentation sent in)",null,null,"N.A."]
[null,"Write an explanation for how the products fulfill this requirement and which documentation that supports the fulfillment"]
[null,"Comments administrator (about the status of the requirement (for the summary)"]
[]
[null,"Comments administrators (Regarding the documentation sent in)"]
[]
["Documentation:"]
["Name of document + create a hyperlink to the documentation"]
[]
[]
[]
[]
[]
["Interpretation and comments from administrators"]
["Are there interpertation for this requirement:","Are there feedback from administrators on this requirement:",null,null,"Please select status"]
["Please select status","Please select status",null,null,"Yes"]
[null,null,{"$f":"IFERROR(VLOOKUP(\"activesheetname\",#REF!,3),\"\")","v":""},{"$f":"IFERROR(VLOOKUP(\"activesheetname\",#REF!,4),\"\")","v":""},"No"]

{"sheet":"R27","index":34,"n_rows":21,"n_cols":5,"rows_kept":21,"cut":false,"hidden":false,"merged":[[18,1,18,3],[19,1,19,3],[0,0,9,0],[4,1,4,3],[5,1,5,3],[6,1,6,3],[7,1,7,3],[8,1,8,3],[9,1,9,3],[10,0,10,3],[12,0,12,3],[13,0,13,3],[14,0,14,3],[15,0,15,3],[16,0,16,3]]}
[null,"Does the product/service fulfill the requirement?",null,null,"Please select status"]
[null,"Applicant:","Please select status",null,"Yes"]
[null,"Administrator","Please select status",null,"No"]
[null,"Controller: ","Please select status",null,"Documentation missing"]
[null,"Comments applicant (Regarding the documentation sent in)",null,null,"N.A."]
[null,"Write an explanation for how the products fulfill this requirement and which documentation that supports the fulfillment"]
[null,"Comments administrator (about the status of the requirement (for the summary)"]
[]
[null,"Comments administrators (Regarding the documentation sent in)"]
[]
["Documentation:"]
["Name of document + create a hyperlink to the documentation"]
[]
[]
[]
[]
[]
["Interpretation and comments from administrators"]
["Are there interpertation for this requirement:","Are there feedback from administrators on this requirement:",null,null,"Please select status"]
["Please select status","Please select status",null,null,"Yes"]
[null,null,{"$f":"IFERROR(VLOOKUP(\"activesheetname\",#REF!,3),\"\")","v":""},{"$f":"IFERROR(VLOOKUP(\"activesheetname\",#REF!,4),\"\")","v":""},"No"]

{"sheet":"R28","index":35,"n_rows":21,"n_cols":5,"rows_kept":21,"cut":false,"hidden":false,"merged":[[18,1,18,3],[19,1,19,3],[14,0,14,3],[15,0,15,3],[16,0,16,3],[10,0,10,3],[12,0,12,3],[13,0,13,3],[0,0,9,0],[4,1,4,3],[5,1,5,3],[6,1,6,3],[7,1,7,3],[8,1,8,3],[9,1,9,3]]}
[null,"Does the product/service fulfill the requirement?",null,null,"Please select status"]
[null,"Applicant:","Please select status",null,"Yes"]
[null,"Administrator","Please select status",null,"No"]
[null,"Controller: ","Please select status",null,"Documentation missing"]
[null,"Comments applicant (Regarding the documentation sent in)",null,null,"N.A."]
[null,"Write an explanation for how the products fulfill this requirement and which documentation that supports the fulfillment"]
[null,"Comments administrator (about the status of the requirement (for the summary)"]
[]
[null,"Comments administrators (Regarding the documentation sent in)"]
[]
["Documentation:"]
["Name of document + create a hyperlink to the documentation"]
[]
[]
[]
[]
[]
["Interpretation and comments from administrators"]
["Are there interpertation for this requirement:","Are there feedback from administrators on this requirement:",null,null,"Please select status"]
["Please select status","Please select status",null,null,"Yes"]
[null,null,{"$f":"IFERROR(VLOOKUP(\"activesheetname\",#REF!,3),\"\")","v":""},{"$f":"IFERROR(VLOOKUP(\"activesheetname\",#REF!,4),\"\")","v":""},"No"]

{"sheet":"R29","index":36,"n_rows":21,"n_cols":5,"rows_kept":21,"cut":false,"hidden":false,"merged":[[18,1,18,3],[19,1,19,3],[14,0,14,3],[15,0,15,3],[16,0,16,3],[10,0,10,3],[12,0,12,3],[13,0,13,3],[0,0,9,0],[4,1,4,3],[5,1,5,3],[6,1,6,3],[7,1,7,3],[8,1,8,3],[9,1,9,3]]}
["Paste in requirement","Does the product/service fulfill the requirement?",null,null,"Please select status"]
[null,"Applicant:","Please select status",null,"Yes"]
[null,"Administrator","Please select status",null,"No"]
[null,"Controller: ","Please select status",null,"Documentation missing"]
[null,"Comments applicant (Regarding the documentation sent in)",null,null,"N.A."]
[null,"Write an explanation for how the products fulfill this requirement and which documentation that supports the fulfillment"]
[null,"Comments administrator (about the status of the requirement (for the summary)"]
[]
[null,"Comments administrators (Regarding the documentation sent in)"]
[]
["Documentation:"]
["Name of document + create a hyperlink to the documentation"]
[]
[]
[]
[]
[]
["Interpretation and comments from administrators"]
["Are there interpertation for this requirement:","Are there feedback from administrators on this requirement:",null,null,"Please select status"]
["Please select status","Please select status",null,null,"Yes"]
[null,null,{"$f":"IFERROR(VLOOKUP(\"activesheetname\",#REF!,3),\"\")","v":""},{"$f":"IFERROR(VLOOKUP(\"activesheetname\",#REF!,4),\"\")","v":""},"No"]

{"sheet":"R30","index":37,"n_rows":21,"n_cols":5,"rows_kept":21,"cut":false,"hidden":false,"merged":[[18,1,18,3],[19,1,19,3],[14,0,14,3],[15,0,15,3],[16,0,16,3],[10,0,10,3],[12,0,12,3],[13,0,13,3],[0,0,9,0],[4,1,4,3],[5,1,5,3],[6,1,6,3],[7,1,7,3],[8,1,8,3],[9,1,9,3]]}
[null,"Does the product/service fulfill the requirement?",null,null,"Please select status"]
[null,"Applicant:","Please select status",null,"Yes"]
[null,"Administrator","Please select status",null,"No"]
[null,"Controller: ","Please select status",null,"Documentation missing"]
[null,"Comments applicant (Regarding the documentation sent in)",null,null,"N.A."]
[null,"Write an explanation for how the products fulfill this requirement and which documentation that supports the fulfillment"]
[null,"Comments administrator (about the status of the requirement (for the summary)"]
[]
[null,"Comments administrators (Regarding the documentation sent in)"]
[]
["Documentation:"]
["Name of document + create a hyperlink to the documentation"]
[]
[]
[]
[]
[]
["Interpretation and comments from administrators"]
["Are there interpertation for this requirement:","Are there feedback from administrators on this requirement:",null,null,"Please select status"]
["Please select status","Please select status",null,null,"Yes"]
[null,null,{"$f":"IFERROR(VLOOKUP(\"activesheetname\",#REF!,3),\"\")","v":""},{"$f":"IFERROR(VLOOKUP(\"activesheetname\",#REF!,4),\"\")","v":""},"No"]

{"sheet":"R31","index":38,"n_rows":21,"n_cols":5,"rows_kept":21,"cut":false,"hidden":false,"merged":[[0,0,9,0],[4,1,4,3],[5,1,5,3],[6,1,6,3],[7,1,7,3],[8,1,8,3],[9,1,9,3],[18,1,18,3],[19,1,19,3],[10,0,10,3],[12,0,12,3],[13,0,13,3],[14,0,14,3],[15,0,15,3],[16,0,16,3]]}
[null,"Does the product/service fulfill the requirement?",null,null,"Please select status"]
[null,"Applicant:","Please select status",null,"Yes"]
[null,"Administrator","Please select status",null,"No"]
[null,"Controller: ","Please select status",null,"Documentation missing"]
[null,"Comments applicant (Regarding the documentation sent in)",null,null,"N.A."]
[null,"Write an explanation for how the products fulfill this requirement and which documentation that supports the fulfillment"]
[null,"Comments administrator (about the status of the requirement (for the summary)"]
[]
[null,"Comments administrators (Regarding the documentation sent in)"]
[]
["Documentation:"]
["Name of document + create a hyperlink to the documentation"]
[]
[]
[]
[]
[]
["Interpretation and comments from administrators"]
["Are there interpertation for this requirement:","Are there feedback from administrators on this requirement:",null,null,"Please select status"]
["Please select status","Please select status",null,null,"Yes"]
[null,null,{"$f":"IFERROR(VLOOKUP(\"activesheetname\",#REF!,3),\"\")","v":""},{"$f":"IFERROR(VLOOKUP(\"activesheetname\",#REF!,4),\"\")","v":""},"No"]

{"sheet":"R32","index":39,"n_rows":21,"n_cols":5,"rows_kept":21,"cut":false,"hidden":false,"merged":[[0,0,9,0],[4,1,4,3],[5,1,5,3],[6,1,6,3],[7,1,7,3],[8,1,8,3],[9,1,9,3],[18,1,18,3],[19,1,19,3],[10,0,10,3],[12,0,12,3],[13,0,13,3],[14,0,14,3],[15,0,15,3],[16,0,16,3]]}
[null,"Does the product/service fulfill the requirement?",null,null,"Please select status"]
[null,"Applicant:","Please select status",null,"Yes"]
[null,"Administrator","Please select status",null,"No"]
[null,"Controller: ","Please select status",null,"Documentation missing"]
[null,"Comments applicant (Regarding the documentation sent in)",null,null,"N.A."]
[null,"Write an explanation for how the products fulfill this requirement and which documentation that supports the fulfillment"]
[null,"Comments administrator (about the status of the requirement (for the summary)"]
[]
[null,"Comments administrators (Regarding the documentation sent in)"]
[]
["Documentation:"]
["Name of document + create a hyperlink to the documentation"]
[]
[]
[]
[]
[]
["Interpretation and comments from administrators"]
["Are there interpertation for this requirement:","Are there feedback from administrators on this requirement:",null,null,"Please select status"]
["Please select status","Please select status",null,null,"Yes"]
[null,null,{"$f":"IFERROR(VLOOKUP(\"activesheetname\",#REF!,3),\"\")","v":""},{"$f":"IFERROR(VLOOKUP(\"activesheetname\",#REF!,4),\"\")","v":""},"No"]

{"sheet":"R33","index":40,"n_rows":21,"n_cols":5,"rows_kept":21,"cut":false,"hidden":false,"merged":[[0,0,9,0],[4,1,4,3],[5,1,5,3],[6,1,6,3],[7,1,7,3],[8,1,8,3],[9,1,9,3],[18,1,18,3],[19,1,19,3],[10,0,10,3],[12,0,12,3],[13,0,13,3],[14,0,14,3],[15,0,15,3],[16,0,16,3]]}
[null,"Does the product/service fulfill the requirement?",null,null,"Please select status"]
[null,"Applicant:","Please select status",null,"Yes"]
[null,"Administrator","Please select status",null,"No"]
[null,"Controller: ","Please select status",null,"Documentation missing"]
[null,"Comments applicant (Regarding the documentation sent in)",null,null,"N.A."]
[null,"Write an explanation for how the products fulfill this requirement and which documentation that supports the fulfillment"]
[null,"Comments administrator (about the status of the requirement (for the summary)"]
[]
[null,"Comments administrators (Regarding the documentation sent in)"]
[]
["Documentation:"]
["Name of document + create a hyperlink to the documentation"]
[]
[]
[]
[]
[]
["Interpretation and comments from administrators"]
["Are there interpertation for this requirement:","Are there feedback from administrators on this requirement:",null,null,"Please select status"]
["Please select status","Please select status",null,null,"Yes"]
[null,null,{"$f":"IFERROR(VLOOKUP(\"activesheetname\",#REF!,3),\"\")","v":""},{"$f":"IFERROR(VLOOKUP(\"activesheetname\",#REF!,4),\"\")","v":""},"No"]

{"sheet":"R34","index":41,"n_rows":21,"n_cols":5,"rows_kept":21,"cut":false,"hidden":false,"merged":[[0,0,9,0],[4,1,4,3],[5,1,5,3],[6,1,6,3],[7,1,7,3],[8,1,8,3],[9,1,9,3],[18,1,18,3],[19,1,19,3],[10,0,10,3],[12,0,12,3],[13,0,13,3],[14,0,14,3],[15,0,15,3],[16,0,16,3]]}
[null,"Does the product/service fulfill the requirement?",null,null,"Please select status"]
[null,"Applicant:","Please select status",null,"Yes"]
[null,"Administrator","Please select status",null,"No"]
[null,"Controller: ","Please select status",null,"Documentation missing"]
[null,"Comments applicant (Regarding the documentation sent in)",null,null,"N.A."]
[null,"Write an explanation for how the products fulfill this requirement and which documentation that supports the fulfillment"]
[null,"Comments administrator (about the status of the requirement (for the summary)"]
[]
[null,"Comments administrators (Regarding the documentation sent in)"]
[]
["Documentation:"]
["Name of document + create a hyperlink to the documentation"]
[]
[]
[]
[]
[]
["Interpretation and comments from administrators"]
["Are there interpertation for this requirement:","Are there feedback from administrators on this requirement:",null,null,"Please select status"]
["Please select status","Please select status",null,null,"Yes"]
[null,null,{"$f":"IFERROR(VLOOKUP(\"activesheetname\",#REF!,3),\"\")","v":""},{"$f":"IFERROR(VLOOKUP(\"activesheetname\",#REF!,4),\"\")","v":""},"No"]

{"sheet":"R35","index":42,"n_rows":21,"n_cols":5,"rows_kept":21,"cut":false,"hidden":false,"merged":[[0,0,9,0],[4,1,4,3],[5,1,5,3],[6,1,6,3],[7,1,7,3],[8,1,8,3],[9,1,9,3],[18,1,18,3],[19,1,19,3],[10,0,10,3],[12,0,12,3],[13,0,13,3],[14,0,14,3],[15,0,15,3],[16,0,16,3]]}
[null,"Does the product/service fulfill the requirement?",null,null,"Please select status"]
[null,"Applicant:","Please select status",null,"Yes"]
[null,"Administrator","Please select status",null,"No"]
[null,"Controller: ","Please select status",null,"Documentation missing"]
[null,"Comments applicant (Regarding the documentation sent in)",null,null,"N.A."]
[null,"Write an explanation for how the products fulfill this requirement and which documentation that supports the fulfillment"]
[null,"Comments administrator (about the status of the requirement (for the summary)"]
[]
[null,"Comments administrators (Regarding the documentation sent in)"]
[]
["Documentation:"]
["Name of document + create a hyperlink to the documentation"]
[]
[]
[]
[]
[]
["Interpretation and comments from administrators"]
["Are there interpertation for this requirement:","Are there feedback from administrators on this requirement:",null,null,"Please select status"]
["Please select status","Please select status",null,null,"Yes"]
[null,null,{"$f":"IFERROR(VLOOKUP(\"activesheetname\",#REF!,3),\"\")","v":""},{"$f":"IFERROR(VLOOKUP(\"activesheetname\",#REF!,4),\"\")","v":""},"No"]

{"sheet":"R36","index":43,"n_rows":21,"n_cols":5,"rows_kept":21,"cut":false,"hidden":false,"merged":[[0,0,9,0],[4,1,4,3],[5,1,5,3],[6,1,6,3],[7,1,7,3],[8,1,8,3],[9,1,9,3],[18,1,18,3],[19,1,19,3],[10,0,10,3],[12,0,12,3],[13,0,13,3],[14,0,14,3],[15,0,15,3],[16,0,16,3]]}
[null,"Does the product/service fulfill the requirement?",null,null,"Please select status"]
[null,"Applicant:","Please select status",null,"Yes"]
[null,"Administrator","Please select status",null,"No"]
[null,"Controller: ","Please select status",null,"Documentation missing"]
[null,"Comments applicant (Regarding the documentation sent in)",null,null,"N.A."]
[null,"Write an explanation for how the products fulfill this requirement and which documentation that supports the fulfillment"]
[null,"Comments administrator (about the status of the requirement (for the summary)"]
[]
[null,"Comments administrators (Regarding the documentation sent in)"]
[]
["Documentation:"]
["Name of document + create a hyperlink to the documentation"]
[]
[]
[]
[]
[]
["Interpretation and comments from administrators"]
["Are there interpertation for this requirement:","Are there feedback from administrators on this requirement:",null,null,"Please select status"]
["Please select status","Please select status",null,null,"Yes"]
[null,null,{"$f":"IFERROR(VLOOKUP(\"activesheetname\",#REF!,3),\"\")","v":""},{"$f":"IFERROR(VLOOKUP(\"activesheetname\",#REF!,4),\"\")","v":""},"No"]

{"sheet":"R37","index":44,"n_rows":21,"n_cols":5,"rows_kept":21,"cut":false,"hidden":false,"merged":[[0,0,9,0],[4,1,4,3],[5,1,5,3],[6,1,6,3],[7,1,7,3],[8,1,8,3],[9,1,9,3],[18,1,18,3],[19,1,19,3],[10,0,10,3],[12,0,12,3],[13,0,13,3],[14,0,14,3],[15,0,15,3],[16,0,16,3]]}
[null,"Does the product/service fulfill the requirement?",null,null,"Please select status"]
[null,"Applicant:","Please select status",null,"Yes"]
[null,"Administrator","Please select status",null,"No"]
[null,"Controller: ","Please select status",null,"Documentation missing"]
[null,"Comments applicant (Regarding the documentation sent in)",null,null,"N.A."]
[null,"Write an explanation for how the products fulfill this requirement and which documentation that supports the fulfillment"]
[null,"Comments administrator (about the status of the requirement (for the summary)"]
[]
[null,"Comments administrators (Regarding the documentation sent in)"]
[]
["Documentation:"]
["Name of document + create a hyperlink to the documentation"]
[]
[]
[]
[]
[]
["Interpretation and comments from administrators"]
["Are there interpertation for this requirement:","Are there feedback from administrators on this requirement:",null,null,"Please select status"]
["Please select status","Please select status",null,null,"Yes"]
[null,null,{"$f":"IFERROR(VLOOKUP(\"activesheetname\",#REF!,3),\"\")","v":""},{"$f":"IFERROR(VLOOKUP(\"activesheetname\",#REF!,4),\"\")","v":""},"No"]

{"sheet":"R38","index":45,"n_rows":21,"n_cols":5,"rows_kept":21,"cut":false,"hidden":false,"merged":[[0,0,9,0],[4,1,4,3],[5,1,5,3],[6,1,6,3],[7,1,7,3],[8,1,8,3],[9,1,9,3],[18,1,18,3],[19,1,19,3],[10,0,10,3],[12,0,12,3],[13,0,13,3],[14,0,14,3],[15,0,15,3],[16,0,16,3]]}
[null,"Does the product/service fulfill the requirement?",null,null,"Please select status"]
[null,"Applicant:","Please select status",null,"Yes"]
[null,"Administrator","Please select status",null,"No"]
[null,"Controller: ","Please select status",null,"Documentation missing"]
[null,"Comments applicant (Regarding the documentation sent in)",null,null,"N.A."]
[null,"Write an explanation for how the products fulfill this requirement and which documentation that supports the fulfillment"]
[null,"Comments administrator (about the status of the requirement (for the summary)"]
[]
[null,"Comments administrators (Regarding the documentation sent in)"]
[]
["Documentation:"]
["Name of document + create a hyperlink to the documentation"]
[]
[]
[]
[]
[]
["Interpretation and comments from administrators"]
["Are there interpertation for this requirement:","Are there feedback from administrators on this requirement:",null,null,"Please select status"]
["Please select status","Please select status",null,null,"Yes"]
[null,null,{"$f":"IFERROR(VLOOKUP(\"activesheetname\",#REF!,3),\"\")","v":""},{"$f":"IFERROR(VLOOKUP(\"activesheetname\",#REF!,4),\"\")","v":""},"No"]

{"sheet":"R39","index":46,"n_rows":21,"n_cols":5,"rows_kept":21,"cut":false,"hidden":false,"merged":[[0,0,9,0],[4,1,4,3],[5,1,5,3],[6,1,6,3],[7,1,7,3],[8,1,8,3],[9,1,9,3],[18,1,18,3],[19,1,19,3],[10,0,10,3],[12,0,12,3],[13,0,13,3],[14,0,14,3],[15,0,15,3],[16,0,16,3]]}
[null,"Does the product/service fulfill the requirement?",null,null,"Please select status"]
[null,"Applicant:","Please select status",null,"Yes"]
[null,"Administrator","Please select status",null,"No"]
[null,"Controller: ","Please select status",null,"Documentation missing"]
[null,"Comments applicant (Regarding the documentation sent in)",null,null,"N.A."]
[null,"Write an explanation for how the products fulfill this requirement and which documentation that supports the fulfillment"]
[null,"Comments administrator (about the status of the requirement (for the summary)"]
[]
[null,"Comments administrators (Regarding the documentation sent in)"]
[]
["Documentation:"]
["Name of document + create a hyperlink to the documentation"]
[]
[]
[]
[]
[]
["Interpretation and comments from administrators"]
["Are there interpertation for this requirement:","Are there feedback from administrators on this requirement:",null,null,"Please select status"]
["Please select status","Please select status",null,null,"Yes"]
[null,null,{"$f":"IFERROR(VLOOKUP(\"activesheetname\",#REF!,3),\"\")","v":""},{"$f":"IFERROR(VLOOKUP(\"activesheetname\",#REF!,4),\"\")","v":""},"No"]

{"sheet":"R40","index":47,"n_rows":21,"n_cols":5,"rows_kept":21,"cut":false,"hidden":false,"merged":[[0,0,9,0],[4,1,4,3],[5,1,5,3],[6,1,6,3],[7,1,7,3],[8,1,8,3],[9,1,9,3],[18,1,18,3],[19,1,19,3],[10,0,10,3],[12,0,12,3],[13,0,13,3],[14,0,14,3],[15,0,15,3],[16,0,16,3]]}
[null,"Does the product/service fulfill the requirement?",null,null,"Please select status"]
[null,"Applicant:","Please select status",null,"Yes"]
[null,"Administrator","Please select status",null,"No"]
[null,"Controller: ","Please select status",null,"Documentation missing"]
[null,"Comments applicant (Regarding the documentation sent in)",null,null,"N.A."]
[null,"Write an explanation for how the products fulfill this requirement and which documentation that supports the fulfillment"]
[null,"Comments administrator (about the status of the requirement (for the summary)"]
[]
[null,"Comments administrators (Regarding the documentation sent in)"]
[]
["Documentation:"]
["Name of document + create a hyperlink to the documentation"]
[]
[]
[]
[]
[]
["Interpretation and comments from administrators"]
["Are there interpertation for this requirement:","Are there feedback from administrators on this requirement:",null,null,"Please select status"]
["Please select status","Please select status",null,null,"Yes"]
[null,null,{"$f":"IFERROR(VLOOKUP(\"activesheetname\",#REF!,3),\"\")","v":""},{"$f":"IFERROR(VLOOKUP(\"activesheetname\",#REF!,4),\"\")","v":""},"No"]

{"sheet":"R41","index":48,"n_rows":21,"n_cols":5,"rows_kept":21,"cut":false,"hidden":false,"merged":[[0,0,9,0],[4,1,4,3],[5,1,5,3],[6,1,6,3],[7,1,7,3],[8,1,8,3],[9,1,9,3],[18,1,18,3],[19,1,19,3],[10,0,10,3],[12,0,12,3],[13,0,13,3],[14,0,14,3],[15,0,15,3],[16,0,16,3]]}
[null,"Does the product/service fulfill the requirement?",null,null,"Please select status"]
[null,"Applicant:","Please select status",null,"Yes"]
[null,"Administrator","Please select status",null,"No"]
[null,"Controller: ","Please select status",null,"Documentation missing"]
[null,"Comments applicant (Regarding the documentation sent in)",null,null,"N.A."]
[null,"Write an explanation for how the products fulfill this requirement and which documentation that supports the fulfillment"]
[null,"Comments administrator (about the status of the requirement (for the summary)"]
[]
[null,"Comments administrators (Regarding the documentation sent in)"]
[]
["Documentation:"]
["Name of document + create a hyperlink to the documentation"]
[]
[]
[]
[]
[]
["Interpretation and comments from administrators"]
["Are there interpertation for this requirement:","Are there feedback from administrators on this requirement:",null,null,"Please select status"]
["Please select status","Please select status",null,null,"Yes"]
[null,null,{"$f":"IFERROR(VLOOKUP(\"activesheetname\",#REF!,3),\"\")","v":""},{"$f":"IFERROR(VLOOKUP(\"activesheetname\",#REF!,4),\"\")","v":""},"No"]